bitfinex/quotes_BTCUSD_20241120
["timestamp","ask_amount","ask_price","bid_price","bid_amount"]
[1732141373350,0.40976751,94324.0,94323.0,0.0008563]
[1732141373805,0.40638709,94324.0,94323.0,0.0008563]
[1732141374462,0.39976751,94324.0,94323.0,0.0008563]
[1732141375978,0.40976751,94324.0,94323.0,0.0008563]
[1732141383887,0.01,94320.0,94280.0,0.09498564]
[1732141384068,0.106031,94312.0,94296.0,0.137863]
[1732141384263,0.13120354,94311.0,94302.0,0.106041]
[1732141384505,0.23723554,94311.0,94297.0,0.137862]
[1732141384723,0.13011512,94311.0,94303.0,0.00286671]
[1732141384911,0.13011512,94311.0,94298.0,0.13786]
[1732141384912,0.00108842,94310.0,94302.0,0.106041]
[1732141385165,0.10711512,94309.0,94304.0,0.0028654]
[1732141385369,0.023,94308.0,94303.0,0.0028641]
[1732141385551,0.13011512,94308.0,94305.0,0.00285973]
[1732141385750,0.13011512,94308.0,94299.0,0.137859]
[1732141386024,0.13011512,94308.0,94306.0,0.00278803]
[1732141386197,0.13011512,94308.0,94304.0,0.106039]
[1732141386434,0.13011512,94308.0,94307.0,0.00284936]
[1732141386604,0.13011512,94308.0,94304.0,0.106039]
[1732141386811,0.13011512,94308.0,94307.0,0.00284841]
[1732141387052,0.13011512,94308.0,94303.0,0.10604]
[1732141387263,0.13011512,94308.0,94307.0,0.00285636]
[1732141387468,0.13011512,94308.0,94303.0,0.10604]
[1732141387689,0.13011512,94308.0,94304.0,0.00286073]
[1732141387896,0.13011512,94308.0,94303.0,0.10604]
[1732141388308,0.13011512,94308.0,94293.0,0.137868]
[1732141388309,0.13011512,94308.0,94304.0,0.00285973]
[1732141388750,0.13011512,94308.0,94294.0,0.0008565]
[1732141388902,0.13011512,94308.0,94305.0,0.00285227]
[1732141389111,0.13011512,94308.0,94303.0,0.10604]
[1732141389319,0.13011512,94308.0,94306.0,0.0027855]
[1732141389520,0.13011512,94308.0,94303.0,0.10604]
[1732141389715,0.13011512,94308.0,94307.0,0.00278405]
[1732141389876,0.13011512,94308.0,94303.0,0.10604]
[1732141390264,0.13011512,94308.0,94307.0,0.00278405]
[1732141390495,0.13011512,94308.0,94303.0,0.10604]
[1732141390726,0.13011512,94308.0,94302.0,0.106042]
[1732141390973,0.13011512,94308.0,94304.0,0.00278732]
[1732141391210,0.13011512,94308.0,94303.0,0.10882878]
[1732141391427,0.13011512,94308.0,94305.0,0.00278586]
[1732141391645,0.13011512,94308.0,94304.0,0.00278732]
[1732141391859,0.13011512,94308.0,94306.0,0.00278441]
[1732141392067,0.13011512,94308.0,94305.0,0.00278586]
[1732141392288,0.13011512,94308.0,94307.0,0.00278295]
[1732141392521,0.13011512,94308.0,94306.0,0.00278441]
[1732141392739,0.13011512,94308.0,94307.0,0.00278295]
[1732141393168,0.13011512,94308.0,94304.0,0.0008558]
[1732141393406,0.13011512,94308.0,94307.0,0.00278405]
[1732141393668,0.13011512,94308.0,94304.0,0.1068948]
[1732141393669,0.13011512,94308.0,94304.0,0.0008558]
[1732141394119,0.13011512,94308.0,94305.0,0.00278586]
[1732141395120,0.13011512,94308.0,94305.0,0.10882386]
[1732141395367,0.13011512,94308.0,94305.0,0.00278586]
[1732141400632,0.13011512,94308.0,94305.0,0.10882386]
[1732141401158,0.13011512,94308.0,94305.0,0.00278586]
[1732141401461,0.13011512,94308.0,94305.0,0.10882386]
[1732141403617,0.13011512,94308.0,94306.0,0.106037]
[1732141403845,0.13011512,94308.0,94305.0,0.00278586]
[1732141404065,0.13011512,94308.0,94307.0,0.00278177]
[1732141404297,0.13011512,94308.0,94306.0,0.00278322]
[1732141404506,0.13011512,94308.0,94305.0,0.106038]
[1732141404719,0.13011512,94308.0,94307.0,0.00278177]
[1732141404929,0.13011512,94308.0,94306.0,0.00278322]
[1732141405136,0.13011512,94308.0,94307.0,0.00278177]
[1732141405559,0.13011512,94308.0,94304.0,0.1068948]
[1732141405759,0.13011512,94308.0,94307.0,0.00278286]
[1732141405934,0.13011512,94308.0,94305.0,0.106038]
[1732141406136,0.13011512,94308.0,94307.0,0.00278177]
[1732141406347,0.13011512,94308.0,94306.0,0.10882022]
[1732141406557,0.13011512,94308.0,94307.0,0.00278177]
[1732141407676,0.13011512,94308.0,94305.0,0.106037]
[1732141407854,0.13011512,94308.0,94306.0,0.00278322]
[1732141408444,0.13011512,94308.0,94304.0,0.1068948]
[1732141408664,0.13011512,94308.0,94305.0,0.00278723]
[1732141408878,0.13011512,94308.0,94306.0,0.106037]
[1732141409108,0.13011512,94308.0,94307.0,0.00278286]
[1732141409554,0.13011512,94308.0,94307.0,0.10881886]
[1732141411320,0.023,94311.0,94310.0,0.106033]
[1732141411771,0.023,94311.0,94310.0,0.10881477]
[1732141411947,0.023,94311.0,94310.0,0.00278177]
[1732141412351,0.023,94311.0,94310.0,0.106033]
[1732141412570,0.023,94311.0,94310.0,0.1088228]
[1732141418006,0.0247126,94311.0,94310.0,0.1088228]
[1732141423895,0.0017126,94311.0,94310.0,0.1088228]
[1732141430723,0.0701126,94311.0,94310.0,0.1088228]
[1732141437709,0.1461126,94311.0,94310.0,0.1088228]
[1732141445049,0.25322772,94311.0,94310.0,0.1088228]
[1732141450355,0.25322772,94311.0,94310.0,0.00262635]
[1732141450748,0.25322772,94311.0,94305.0,0.13785]
[1732141450866,0.13120354,94310.0,94309.0,0.106034]
[1732141451067,0.13120354,94310.0,94309.0,0.10865879]
[1732141454337,0.17700354,94310.0,94309.0,0.00262479]
[1732141454807,0.17700354,94310.0,94309.0,0.10865879]
[1732141455034,0.17700354,94310.0,94309.0,0.106034]
[1732141455261,0.17700354,94310.0,94309.0,0.10865879]
[1732141459066,0.17700354,94310.0,94309.0,0.00262479]
[1732141459489,0.023,94308.0,94305.0,0.106038]
[1732141459707,0.023,94308.0,94307.0,0.106036]
[1732141459927,0.023,94310.0,94309.0,0.106034]
[1732141460148,0.0702,94310.0,94309.0,0.106034]
[1732141461609,0.17731512,94310.0,94309.0,0.106034]
[1732141461830,0.17840354,94310.0,94309.0,0.106034]
[1732141464553,0.25711512,94310.0,94309.0,0.106034]
[1732141471655,0.0017126,94311.0,94310.0,0.106033]
[1732141472347,0.0017126,94311.0,94310.0,0.1085253]
[1732141489047,0.0017126,94311.0,94310.0,0.1093815]
[1732141501218,0.0017126,94311.0,94310.0,0.21044177]
[1732141501438,0.0017126,94311.0,94310.0,0.30454713]
[1732141501640,0.0017126,94311.0,94310.0,0.2093815]
[1732141502271,0.0017126,94311.0,94310.0,0.39971276]
[1732141502447,0.0017126,94311.0,94310.0,0.2093815]
[1732141503831,0.0017126,94311.0,94310.0,0.39971276]
[1732141504455,0.0017126,94311.0,94310.0,0.2093815]
[1732141505095,0.0017126,94311.0,94310.0,0.39971276]
[1732141505299,0.0014866,94311.0,94310.0,0.2093815]
[1732141505932,0.0014866,94311.0,94310.0,0.35201679]
[1732141506337,0.0014866,94311.0,94310.0,0.35199805]
[1732141506450,0.0014866,94311.0,94310.0,0.2093815]
[1732141506670,0.0014866,94311.0,94310.0,0.3519975]
[1732141506874,0.0014866,94311.0,94310.0,0.2093815]
[1732141507078,0.0014866,94311.0,94310.0,0.35126106]
[1732141507385,0.0014866,94311.0,94310.0,0.35124543]
[1732141507587,0.0014866,94311.0,94310.0,0.20864522]
[1732141508111,0.0014866,94311.0,94310.0,0.35124543]
[1732141508501,0.0014866,94311.0,94310.0,0.20864522]
[1732141508891,0.0014866,94311.0,94310.0,0.35124543]
[1732141509349,0.0014866,94311.0,94310.0,0.20864522]
[1732141509471,0.0014866,94311.0,94310.0,0.35124543]
[1732141509868,0.0014866,94311.0,94310.0,0.20864522]
[1732141510077,0.0014866,94311.0,94310.0,0.35124543]
[1732141510292,0.0014866,94311.0,94310.0,0.20864522]
[1732141510943,0.0014866,94311.0,94310.0,0.3512183]
[1732141511117,0.0014866,94311.0,94310.0,0.20864522]
[1732141511718,0.0014866,94311.0,94310.0,0.30369067]
[1732141512064,0.0014866,94311.0,94310.0,0.20864522]
[1732141512412,0.0014866,94311.0,94310.0,0.30368781]
[1732141512621,0.0014866,94311.0,94310.0,0.20864522]
[1732141512853,0.0014866,94311.0,94310.0,0.30368781]
[1732141513229,0.0014866,94311.0,94310.0,0.20864522]
[1732141513805,0.0014866,94311.0,94310.0,0.30368781]
[1732141513998,0.0014866,94311.0,94310.0,0.20864522]
[1732141515357,0.0014866,94311.0,94310.0,0.30368781]
[1732141515570,0.0014866,94311.0,94310.0,0.30369504]
[1732141515889,0.0014866,94311.0,94310.0,0.20864522]
[1732141518554,0.0014866,94311.0,94310.0,0.30369504]
[1732141518971,0.0014866,94311.0,94310.0,0.20864522]
[1732141520609,0.0014866,94311.0,94310.0,0.30369504]
[1732141521664,0.0014866,94311.0,94310.0,0.20864522]
[1732141521872,0.0014866,94311.0,94310.0,0.30372389]
[1732141522123,0.0014866,94311.0,94310.0,0.20864522]
[1732141526585,0.0014866,94311.0,94310.0,0.30372389]
[1732141527031,0.0014866,94311.0,94310.0,0.20864522]
[1732141527204,0.0014866,94311.0,94310.0,0.30372389]
[1732141527816,0.0014866,94311.0,94310.0,0.20864522]
[1732141528253,0.0014866,94311.0,94310.0,0.30372389]
[1732141528454,0.0014866,94311.0,94310.0,0.20864522]
[1732141529224,0.0014866,94311.0,94310.0,0.30375819]
[1732141529427,0.0014866,94311.0,94310.0,0.20864522]
[1732141535670,0.0014866,94311.0,94310.0,0.30378374]
[1732141535896,0.0014866,94311.0,94310.0,0.20864522]
[1732141537131,0.0473866,94311.0,94310.0,0.20864522]
[1732141538064,0.0473866,94311.0,94310.0,0.30379523]
[1732141538362,0.0473866,94311.0,94310.0,0.20864522]
[1732141542088,0.0473866,94311.0,94310.0,0.30379523]
[1732141542501,0.0473866,94311.0,94310.0,0.20864522]
[1732141542702,0.0473866,94311.0,94310.0,0.30381873]
[1732141543206,0.0473866,94311.0,94310.0,0.20864522]
[1732141543426,0.0473866,94311.0,94310.0,0.30381837]
[1732141543624,0.0473866,94311.0,94310.0,0.20864522]
[1732141545055,0.0473866,94311.0,94310.0,0.30383167]
[1732141545565,0.0473866,94311.0,94310.0,0.20864522]
[1732141547946,0.0473866,94311.0,94310.0,0.3514249]
[1732141548161,0.0473866,94311.0,94310.0,0.20864522]
[1732141550100,0.0473866,94311.0,94310.0,0.35144709]
[1732141550784,0.0473866,94311.0,94310.0,0.20864522]
[1732141551476,0.0473866,94311.0,94310.0,0.30384954]
[1732141551982,0.0473866,94311.0,94310.0,0.20864522]
[1732141552471,0.0473866,94311.0,94310.0,0.30385045]
[1732141552712,0.0473866,94311.0,94310.0,0.20864522]
[1732141552965,0.0473866,94311.0,94310.0,0.30385066]
[1732141554264,0.0473866,94311.0,94310.0,0.20864522]
[1732141554496,0.0473866,94311.0,94310.0,0.30385066]
[1732141554702,0.0473866,94311.0,94310.0,0.20864522]
[1732141554703,0.1276866,94311.0,94310.0,0.20864522]
[1732141554926,0.1276866,94311.0,94310.0,0.30385066]
[1732141555175,0.1276866,94311.0,94310.0,0.20864522]
[1732141558412,0.1276866,94311.0,94310.0,0.30386632]
[1732141558905,0.1276866,94311.0,94310.0,0.20864522]
[1732141562209,0.1276866,94311.0,94310.0,0.3038773]
[1732141562434,0.1276866,94311.0,94310.0,0.20864522]
[1732141572516,0.1276866,94311.0,94310.0,0.35151386]
[1732141575885,0.25780172,94311.0,94310.0,0.25151386]
[1732141576103,0.25780172,94311.0,94310.0,0.10864522]
[1732141577858,0.0772,94309.0,94307.0,0.106036]
[1732141578071,0.25710354,94308.0,94307.0,0.106036]
[1732141578281,0.25601512,94308.0,94307.0,0.106036]
[1732141583820,0.13011512,94308.0,94306.0,0.106037]
[1732141584024,0.14818842,94307.0,94306.0,0.106037]
[1732141584277,0.25530354,94307.0,94306.0,0.106037]
[1732141584466,0.29149713,94307.0,94306.0,0.106037]
[1732141584680,0.25421512,94307.0,94306.0,0.106037]
[1732141585329,0.25421512,94307.0,94306.0,0.10772583]
[1732141593597,0.37025112,94307.0,94306.0,0.00168883]
[1732141594000,0.139038,94305.0,94304.0,0.0008558]
[1732141594349,0.45146499,94305.0,94304.0,0.0008558]
[1732141594521,0.45037657,94305.0,94304.0,0.0008558]
[1732141595705,0.46037657,94305.0,94304.0,0.0008558]
[1732141598301,0.46237657,94305.0,94304.0,0.0008558]
[1732141598861,0.38745312,94305.0,94304.0,0.0008558]
[1732141599313,0.38945312,94305.0,94304.0,0.0008558]
[1732141600158,0.48425269,94305.0,94304.0,0.0008558]
[1732141600360,0.38745312,94305.0,94304.0,0.0008558]
[1732141600805,0.48225269,94305.0,94304.0,0.0008558]
[1732141601017,0.48425269,94305.0,94304.0,0.0008558]
[1732141601214,0.59231524,94305.0,94304.0,0.0008558]
[1732141601599,0.49951567,94305.0,94304.0,0.0008558]
[1732141608190,0.49751567,94305.0,94304.0,0.0008558]
[1732141608428,0.49951567,94305.0,94304.0,0.0008558]
[1732141612812,0.39045312,94305.0,94304.0,0.0008558]
[1732141622486,0.48521205,94305.0,94304.0,0.0008558]
[1732141622714,0.39045312,94305.0,94304.0,0.0008558]
[1732141622944,0.48521205,94305.0,94304.0,0.0008558]
[1732141625559,0.39045312,94305.0,94304.0,0.0008558]
[1732141625792,0.59427418,94305.0,94304.0,0.0008558]
[1732141626251,0.49951567,94305.0,94304.0,0.0008558]
[1732141628572,0.64166939,94305.0,94304.0,0.0008558]
[1732141629614,1.08627602,94305.0,94304.0,0.0008558]
[1732141629867,0.84935316,94305.0,94304.0,0.0008558]
[1732141631417,1.08627238,94305.0,94304.0,0.0008558]
[1732141632272,0.84935316,94305.0,94304.0,0.0008558]
[1732141632639,1.08631369,94305.0,94304.0,0.0008558]
[1732141633479,0.84935316,94305.0,94304.0,0.0008558]
[1732141636311,1.08639523,94305.0,94304.0,0.0008558]
[1732141636696,0.84952036,94305.0,94304.0,0.02601629]
[1732141636893,0.81325954,94305.0,94304.0,0.02601629]
[1732141637147,0.60380784,94305.0,94304.0,0.02601629]
[1732141637554,0.60380784,94305.0,94304.0,0.01409735]
[1732141637711,0.79348547,94305.0,94304.0,0.00416661]
[1732141638301,0.60380784,94305.0,94304.0,0.00416661]
[1732141639325,0.141042,94302.0,94301.0,2.291e-05]
[1732141639533,0.28160321,94302.0,94301.0,2.291e-05]
[1732141639760,0.63051948,94302.0,94301.0,2.291e-05]
[1732141639959,0.63051931,94302.0,94301.0,2.291e-05]
[1732141640188,0.67571931,94302.0,94301.0,2.291e-05]
[1732141640394,0.64336181,94302.0,94301.0,2.291e-05]
[1732141640766,0.65988185,94302.0,94301.0,2.291e-05]
[1732141640998,0.67571916,94302.0,94301.0,2.291e-05]
[1732141642167,0.67571916,94302.0,94279.0,0.0008565]
[1732141642168,0.5,94297.0,94279.0,0.0008565]
[1732141642368,0.29138212,94280.0,94279.0,0.0008565]
[1732141642566,0.32373947,94280.0,94279.0,0.0008565]
[1732141642796,0.67418284,94280.0,94279.0,0.0008565]
[1732141642967,0.94700874,94280.0,94279.0,0.0008565]
[1732141643170,0.70959407,94280.0,94279.0,0.0008565]
[1732141643380,0.67618284,94280.0,94279.0,0.0008565]
[1732141643573,0.9133798,94280.0,94279.0,0.0008565]
[1732141643979,0.67618284,94280.0,94279.0,0.0008565]
[1732141644196,0.70977832,94280.0,94279.0,0.0008565]
[1732141644398,0.94700749,94280.0,94279.0,0.0008565]
[1732141644598,0.70977832,94280.0,94279.0,0.0008565]
[1732141644887,0.94700749,94280.0,94279.0,0.0008565]
[1732141645058,0.81503819,94280.0,94279.0,0.0008565]
[1732141645262,0.81703819,94280.0,94279.0,0.0008565]
[1732141645716,0.84248884,94280.0,94279.0,0.0008565]
[1732141645926,0.84448884,94280.0,94279.0,0.0008565]
[1732141646344,2.45155139,94280.0,94279.0,0.0008565]
[1732141646556,2.43049152,94280.0,94279.0,0.0018565]
[1732141646783,2.35548884,94280.0,94279.0,0.0018565]
[1732141647009,2.35748884,94280.0,94279.0,0.0018565]
[1732141647227,0.139069,94278.0,94277.0,0.0008564]
[1732141647459,0.65709704,94278.0,94277.0,0.0008564]
[1732141647666,0.65800862,94278.0,94277.0,0.0008564]
[1732141648532,0.67600862,94278.0,94277.0,0.0018564]
[1732141649220,0.75560862,94278.0,94277.0,0.0018564]
[1732141649624,0.7807618,94278.0,94277.0,0.0018564]
[1732141650069,0.77083418,94278.0,94277.0,0.0018564]
[1732141650289,0.78069007,94278.0,94277.0,0.0018564]
[1732141650500,0.77083418,94278.0,94277.0,0.0018564]
[1732141650709,0.75401566,94278.0,94277.0,0.0018564]
[1732141650911,0.74272116,94278.0,94277.0,0.0018564]
[1732141651121,0.72742134,94278.0,94277.0,0.0018564]
[1732141651346,0.77963439,94278.0,94277.0,0.0018564]
[1732141651801,0.023,94261.0,94251.0,0.1071548]
[1732141652006,0.10711512,94258.0,94251.0,0.1071548]
[1732141652214,0.04970715,94257.0,94251.0,0.1071548]
[1732141652418,0.023,94255.0,94251.0,0.1071548]
[1732141652621,0.13382227,94254.0,94251.0,0.1071548]
[1732141652793,0.02561873,94253.0,94251.0,0.1071548]
[1732141653147,0.13382227,94252.0,94251.0,0.1071548]
[1732141653354,0.1180569,94252.0,94251.0,0.1071548]
[1732141653687,0.13381393,94252.0,94251.0,0.1071548]
[1732141654100,0.1180569,94252.0,94251.0,0.1071548]
[1732141654715,0.13381314,94252.0,94251.0,0.0010558]
[1732141655161,0.1180569,94252.0,94251.0,0.0010558]
[1732141655313,0.13381048,94252.0,94251.0,0.1071548]
[1732141655551,0.13380981,94252.0,94251.0,0.1071548]
[1732141656134,0.13380981,94252.0,94251.0,0.0010558]
[1732141656738,0.16797074,94252.0,94251.0,0.0010558]
[1732141661973,0.38397491,94252.0,94251.0,0.0010558]
[1732141662355,0.50881454,94252.0,94251.0,0.0010558]
[1732141662557,0.6381884,94252.0,94251.0,0.0010558]
[1732141663011,0.6381884,94252.0,94245.0,0.001711]
[1732141663012,0.265805,94246.0,94245.0,0.001711]
[1732141663220,0.5015734,94246.0,94245.0,0.001711]
[1732141663462,0.41272383,94246.0,94245.0,0.001711]
[1732141663690,0.44491938,94246.0,94245.0,0.001711]
[1732141663916,0.40711567,94246.0,94245.0,0.001711]
[1732141664142,0.50149539,94246.0,94245.0,0.001711]
[1732141664385,0.40711567,94246.0,94245.0,0.001711]
[1732141664775,0.40811567,94246.0,94245.0,0.001711]
[1732141665195,0.41011567,94246.0,94245.0,0.001711]
[1732141666318,0.48818246,94246.0,94245.0,0.001711]
[1732141666568,0.52598617,94246.0,94245.0,0.001711]
[1732141666788,0.49379062,94246.0,94245.0,0.001711]
[1732141667047,0.47833818,94246.0,94245.0,0.001711]
[1732141668408,0.40027139,94246.0,94245.0,0.001711]
[1732141670175,0.40689786,94246.0,94245.0,0.001711]
[1732141670541,0.40689786,94246.0,94224.0,0.106129]
[1732141670542,0.033,94238.0,94224.0,0.106129]
[1732141670866,0.26966881,94238.0,94224.0,0.106129]
[1732141671064,0.26858668,94238.0,94224.0,0.106129]
[1732141672403,0.27522815,94238.0,94223.0,0.212261]
[1732141672614,0.27522815,94238.0,94221.0,0.127359]
[1732141672842,0.26860174,94238.0,94225.0,0.106128]
[1732141673052,0.27722813,94238.0,94224.0,0.106129]
[1732141673272,0.01,94232.0,94224.0,0.106129]
[1732141673476,0.14782993,94232.0,94224.0,0.106129]
[1732141673678,0.16357616,94232.0,94224.0,0.106129]
[1732141674343,0.26969716,94232.0,94224.0,0.106129]
[1732141674519,0.26860874,94232.0,94224.0,0.106129]
[1732141675934,0.26860874,94232.0,94223.0,0.10613]
[1732141676349,0.26860874,94232.0,94224.0,0.106129]
[1732141677018,0.26860874,94232.0,94221.0,0.106133]
[1732141677667,0.26860874,94232.0,94220.0,0.212268]
[1732141677900,0.26860874,94232.0,94221.0,0.106133]
[1732141678350,0.27523516,94232.0,94222.0,0.106131]
[1732141679261,0.27523516,94232.0,94231.0,0.0010566]
[1732141680181,0.2752352,94232.0,94231.0,0.0010566]
[1732141680634,0.24623612,94232.0,94231.0,0.0010566]
[1732141680838,0.2594891,94232.0,94231.0,0.0010566]
[1732141681046,0.27524063,94232.0,94231.0,0.0010566]
[1732141681257,0.139123,94230.0,94221.0,0.212265]
[1732141681465,0.27633105,94230.0,94221.0,0.212265]
[1732141681664,0.27524263,94230.0,94221.0,0.212265]
[1732141681792,0.27524263,94230.0,94219.0,0.106135]
[1732141682009,0.27524263,94230.0,94221.0,0.106133]
[1732141682404,0.26199318,94230.0,94221.0,0.106133]
[1732141682638,0.2652462,94230.0,94221.0,0.106133]
[1732141682842,0.2752462,94230.0,94221.0,0.106133]
[1732141683294,0.2752462,94230.0,94222.0,0.106131]
[1732141683433,0.023,94228.0,94222.0,0.106131]
[1732141683630,0.023,94226.0,94222.0,0.106131]
[1732141683841,0.13721162,94225.0,94222.0,0.106131]
[1732141684051,0.02900808,94224.0,94222.0,0.106131]
[1732141684286,0.13721162,94223.0,94220.0,0.106133]
[1732141684490,0.02238157,94222.0,94219.0,0.106135]
[1732141684688,0.13058511,94221.0,94220.0,0.106134]
[1732141685625,0.13721158,94221.0,94220.0,0.106134]
[1732141685827,0.14700383,94221.0,94220.0,0.106134]
[1732141686070,0.14700383,94221.0,94217.0,0.106137]
[1732141686279,0.10820354,94221.0,94219.0,0.106134]
[1732141686490,0.02239,94220.0,94219.0,0.106134]
[1732141686691,0.12950512,94220.0,94219.0,0.106134]
[1732141686930,0.12950512,94220.0,94218.0,0.106136]
[1732141687143,0.12950512,94220.0,94213.0,0.12737]
[1732141687144,0.13059354,94219.0,94213.0,0.12737]
[1732141687486,0.13059354,94219.0,94209.0,0.0008561]
[1732141687487,0.02239,94218.0,94217.0,0.106137]
[1732141687684,0.12950512,94218.0,94217.0,0.106137]
[1732141689954,0.12952146,94218.0,94217.0,0.106137]
[1732141690176,0.10711512,94218.0,94217.0,0.106137]
[1732141690390,0.12952065,94218.0,94217.0,0.106137]
[1732141690821,0.12952065,94218.0,94214.0,0.127369]
[1732141691032,0.00108842,94225.0,94217.0,0.212274]
[1732141691033,0.106128,94225.0,94217.0,0.212274]
[1732141691241,0.02241468,94224.0,94217.0,0.106137]
[1732141691460,0.27030185,94226.0,94212.0,0.000856]
[1732141691461,0.212277,94217.0,94212.0,0.000856]
[1732141691683,0.10614,94215.0,94212.0,0.000856]
[1732141691892,0.212264,94222.0,94212.0,0.000856]
[1732141691893,0.02241468,94214.0,94212.0,0.000856]
[1732141692102,0.02241468,94213.0,94212.0,0.000856]
[1732141692320,0.106138,94217.0,94212.0,0.000856]
[1732141692523,0.212272,94219.0,94212.0,0.000856]
[1732141692674,0.023,94218.0,94205.0,0.127381]
[1732141692890,0.10711512,94217.0,94208.0,0.01]
[1732141693089,0.10711512,94217.0,94216.0,0.106139]
[1732141694592,0.12955597,94217.0,94216.0,0.106139]
[1732141695288,0.12292919,94217.0,94216.0,0.106139]
[1732141696644,0.12267824,94217.0,94216.0,0.106139]
[1732141698018,0.10711512,94217.0,94216.0,0.106139]
[1732141698446,0.12238167,94217.0,94216.0,0.106139]
[1732141701923,0.12238167,94217.0,94214.0,0.127368]
[1732141702208,0.00108842,94216.0,94215.0,0.106139]
[1732141702458,0.12332936,94216.0,94214.0,0.127368]
[1732141702673,0.12224094,94215.0,94214.0,0.127368]
[1732141703320,0.12224094,94215.0,94210.0,0.127375]
[1732141703516,0.09701424,94214.0,94212.0,0.106142]
[1732141703742,0.09701424,94214.0,94210.0,0.127375]
[1732141703743,0.12224094,94213.0,94210.0,0.106145]
[1732141703966,0.01621424,94212.0,94209.0,0.106146]
[1732141704091,0.01621424,94212.0,94209.0,0.212292]
[1732141704092,0.12224094,94211.0,94209.0,0.212292]
[1732141704296,0.10711512,94211.0,94210.0,0.106145]
[1732141704728,0.12214345,94211.0,94210.0,0.106145]
[1732141705102,0.12214345,94211.0,94209.0,0.106146]
[1732141705308,0.10711512,94211.0,94210.0,0.106145]
[1732141705504,0.12214284,94211.0,94210.0,0.106145]
[1732141705708,0.12214284,94211.0,94208.0,0.106147]
[1732141705907,0.00108842,94210.0,94209.0,0.106146]
[1732141706168,0.10820354,94210.0,94209.0,0.106146]
[1732141706426,0.12324025,94210.0,94209.0,0.106146]
[1732141706565,0.12215183,94210.0,94209.0,0.106146]
[1732141707497,0.10711512,94210.0,94209.0,0.106146]
[1732141707689,0.12244295,94210.0,94209.0,0.106146]
[1732141708319,0.12244295,94210.0,94201.0,0.03388321]
[1732141708555,0.12353137,94209.0,94196.0,0.01]
[1732141708711,0.01532783,94208.0,94203.0,0.106153]
[1732141708915,0.293084,94214.0,94204.0,0.106151]
[1732141708916,0.12353137,94207.0,94204.0,0.106151]
[1732141709098,0.01532783,94206.0,94204.0,0.106151]
[1732141709299,0.12244295,94205.0,94204.0,0.106151]
[1732141709861,0.10711512,94205.0,94204.0,0.106151]
[1732141711444,0.12249209,94205.0,94204.0,0.106151]
[1732141711649,0.10711512,94205.0,94204.0,0.106151]
[1732141713194,0.10711512,94205.0,94200.0,0.116772]
[1732141713395,0.10711512,94205.0,94197.0,0.03397626]
[1732141713621,0.10711512,94205.0,94204.0,0.106151]
[1732141716044,0.10711512,94205.0,94204.0,0.1070072]
[1732141719431,0.10711512,94205.0,94204.0,0.1070082]
[1732141723341,0.10711512,94205.0,94204.0,0.0008562]
[1732141724443,0.12234871,94205.0,94204.0,0.0008562]
[1732141724825,0.10711512,94205.0,94204.0,0.0008562]
[1732141725011,0.12233447,94205.0,94204.0,0.0008562]
[1732141725960,0.12233447,94205.0,94204.0,0.1070082]
[1732141726171,0.10711512,94205.0,94204.0,0.0008562]
[1732141726374,0.12231021,94205.0,94204.0,0.0008562]
[1732141727369,0.16598421,94205.0,94204.0,0.0008562]
[1732141728230,0.10711512,94205.0,94204.0,0.0008562]
[1732141728488,0.21326612,94205.0,94204.0,0.0008562]
[1732141729066,0.22840786,94205.0,94204.0,0.0008562]
[1732141730255,0.12225686,94205.0,94204.0,0.1070082]
[1732141730454,0.12222581,94205.0,94204.0,0.0008562]
[1732141734054,0.12233956,94205.0,94204.0,0.0008562]
[1732141734486,0.12233921,94205.0,94204.0,0.0008562]
[1732141735689,0.12233921,94205.0,94204.0,0.1070082]
[1732141735890,0.12233921,94205.0,94204.0,0.0008562]
[1732141738230,0.45287986,94205.0,94204.0,0.0008562]
[1732141738417,0.50068357,94205.0,94204.0,0.0008562]
[1732141738551,0.81256593,94205.0,94204.0,0.0008562]
[1732141739613,0.73292063,94205.0,94204.0,0.0008562]
[1732141740194,0.98610532,94205.0,94204.0,0.0008562]
[1732141740569,0.73292063,94205.0,94204.0,0.0008562]
[1732141741462,0.73492063,94205.0,94204.0,0.0008562]
[1732141742832,0.73470281,94205.0,94204.0,0.0008562]
[1732141743075,0.84376536,94205.0,94204.0,0.0008562]
[1732141743306,0.84576536,94205.0,94204.0,0.0008562]
[1732141743530,0.266357,94200.0,94199.0,0.0008562]
[1732141743756,0.38869621,94200.0,94199.0,0.0008562]
[1732141744048,0.75443139,94200.0,94199.0,0.0008562]
[1732141744273,0.99087387,94200.0,94199.0,0.0008562]
[1732141744494,0.97445129,94200.0,94199.0,0.0008562]
[1732141745359,0.73800881,94200.0,94199.0,0.0008562]
[1732141745579,0.97445129,94200.0,94199.0,0.0008562]
[1732141745800,0.73800881,94200.0,94199.0,0.0008562]
[1732141746013,0.84707136,94200.0,94199.0,0.0008562]
[1732141746225,0.73800881,94200.0,94199.0,0.0008562]
[1732141746462,0.92710348,94200.0,94199.0,0.0008562]
[1732141746666,0.9271067,94200.0,94199.0,0.0008562]
[1732141747091,0.73800881,94200.0,94199.0,0.0008562]
[1732141747313,0.92708936,94200.0,94199.0,0.0008562]
[1732141747538,0.92677309,94200.0,94199.0,0.0008562]
[1732141747771,0.84675166,94200.0,94199.0,0.0008562]
[1732141748368,1.03580154,94200.0,94199.0,0.0008562]
[1732141749288,1.06537796,94200.0,94199.0,0.0008562]
[1732141749920,1.03580154,94200.0,94199.0,0.0008562]
[1732141750766,1.06537796,94200.0,94199.0,0.0008562]
[1732141751052,0.84675166,94200.0,94199.0,0.0008562]
[1732141751646,0.87632808,94200.0,94199.0,0.0008562]
[1732141751857,0.84675166,94200.0,94199.0,0.0008562]
[1732141752260,0.84657223,94200.0,94199.0,0.0008562]
[1732141752897,0.84957223,94200.0,94199.0,0.0008562]
[1732141753321,0.84956712,94200.0,94199.0,0.0008562]
[1732141753486,0.8556243,94200.0,94199.0,0.0008562]
[1732141753892,0.84034303,94200.0,94199.0,0.0008562]
[1732141754101,0.8556266,94200.0,94199.0,0.0008562]
[1732141754551,0.88520302,94200.0,94199.0,0.0008562]
[1732141754754,0.86991945,94200.0,94199.0,0.0008562]
[1732141754894,1.04458761,94200.0,94199.0,0.0008562]
[1732141755285,1.06095574,94200.0,94199.0,0.0008562]
[1732141755493,1.04455378,94200.0,94199.0,0.0008562]
[1732141755697,0.87202784,94200.0,94199.0,0.0008562]
[1732141755922,1.06095355,94200.0,94199.0,0.0008562]
[1732141756150,0.6649002,94200.0,94199.0,0.0008562]
[1732141756358,1.35548356,94200.0,94199.0,0.0008562]
[1732141756795,1.34020071,94200.0,94199.0,0.0008562]
[1732141757008,1.34019117,94200.0,94199.0,0.0008562]
[1732141757243,1.5762913,94200.0,94199.0,0.0008562]
[1732141758169,1.59152823,94200.0,94199.0,0.0008562]
[1732141758391,0.118166,94192.0,94191.0,0.0002]